bitfinex/quotes_SOLUSD_20251025
["timestamp","ask_amount","ask_price","bid_price","bid_amount"]
[1761355344373,103.01,193.71,193.68,5.87311615]
[1761355345996,102.3,193.71,193.69,5.87287113]
[1761355346198,102.3,193.71,193.69,7.51270737]
[1761355346501,102.3,193.71,193.7,0.71]
[1761355346679,0.1,193.71,193.7,0.71]
[1761355348377,0.1,193.71,193.7,5.87262261]
[1761355348578,0.1,193.71,193.7,8.43267259]
[1761355349607,0.1,193.71,193.7,5.87262261]
[1761355357792,0.1,193.71,193.7,8.43267259]
[1761355358116,0.1,193.71,193.7,19.3091478]
[1761355362712,0.1,193.71,193.7,34.81182201]
[1761355362904,0.1,193.71,193.7,37.88813425]
[1761355364620,0.1,193.78,193.71,10.87647521]
[1761355364923,0.1,193.78,193.77,2.56004998]
[1761355365219,0.1,193.78,193.77,3.27004998]
[1761355366023,0.1,193.78,193.77,2.56004998]
[1761355366218,0.1,193.78,193.73,10.87647521]
[1761355366219,0.81,193.78,193.74,46.53647521]
[1761355366524,0.81,193.78,193.75,5.16129032]
[1761355368313,0.81,193.78,193.75,5.87129032]
[1761355370319,0.1,193.78,193.76,3.27004998]
[1761355370534,0.1,193.78,193.77,2.56004998]
[1761355370819,0.1,193.78,193.77,3.27004998]
[1761355372826,0.1,193.78,193.77,8.43080757]
[1761355373015,0.1,193.78,193.77,7.72080757]
[1761355373403,0.1,193.78,193.77,8.43080757]
[1761355373799,0.1,193.78,193.77,7.72080757]
[1761355375329,0.1,193.78,193.77,8.43080757]
[1761355375530,0.1,193.78,193.77,7.72080757]
[1761355376023,0.1,193.78,193.77,8.43080757]
[1761355377032,0.1,193.78,193.77,5.16075759]
[1761355377425,0.1,193.78,193.77,5.87075759]
[1761355378326,0.1,193.78,193.77,8.43080757]
[1761355379425,0.1,193.78,193.77,7.72080757]
[1761355381832,0.1,193.78,193.77,5.16075759]
[1761355382030,0.1,193.78,193.77,7.72080757]
[1761355382238,0.1,193.78,193.77,5.16075759]
[1761355383033,0.1,193.78,193.77,5.83075759]
[1761355383412,0.1,193.78,193.77,5.16075759]
[1761355383953,0.1,193.78,193.77,5.83075759]
[1761355384937,0.1,193.78,193.77,5.16075759]
[1761355386135,0.1,193.78,193.77,5.83075759]
[1761355386728,0.1,193.78,193.77,8.39080757]
[1761355394738,0.1,193.78,193.77,5.83075759]
[1761355395046,0.1,193.78,193.77,8.39080757]
[1761355404654,0.1,193.78,193.77,44.03080757]
[1761355406738,0.1,193.78,193.77,43.10768139]
[1761355412357,0.1,193.78,193.77,41.47075759]
[1761355412559,0.1,193.78,193.77,43.10768139]
[1761355414272,0.1,193.78,193.77,53.9841566]
[1761355417473,0.1,193.78,193.77,52.3472328]
[1761355417638,0.1,193.78,193.77,53.9841566]
[1761355419246,0.1,193.78,193.77,54.50023235]
[1761355420163,0.1,193.79,193.78,10.87647521]
[1761355420367,0.1,193.79,193.78,13.18339901]
[1761355420677,0.1,193.79,193.78,15.24935464]
[1761355421369,0.1,193.79,193.78,20.40984591]
[1761355421564,0.1,193.79,193.78,16.70696648]
[1761355421863,0.1,193.79,193.78,18.34389028]
[1761355422470,0.1,193.79,193.78,20.40984591]
[1761355422869,0.1,193.79,193.78,18.34389028]
[1761355424359,0.1,193.79,193.78,20.40984591]
[1761355431970,1e-08,193.79,193.78,43.28984591]
[1761355432173,1e-08,193.79,193.78,43.78984591]
[1761355433049,1e-08,193.79,193.78,42.15292211]
[1761355433267,1e-08,193.79,193.78,41.72389028]
[1761355433463,1e-08,193.79,193.78,43.78984591]
[1761355437565,1e-08,193.79,193.78,43.11984591]
[1761355437971,1e-08,193.79,193.78,43.78984591]
[1761355445286,0.67000001,193.79,193.78,43.11984591]
[1761355445482,1e-08,193.79,193.78,78.73984591]
[1761355445685,1e-08,193.79,193.78,79.40984591]
[1761355445898,1e-08,193.79,193.78,79.92589503]
[1761355447768,1e-08,193.79,193.78,81.56281883]
[1761355447970,1e-08,193.79,193.78,79.92589503]
[1761355448282,1e-08,193.81,193.8,33.75647521]
[1761355448595,1e-08,193.81,193.8,73.16631868]
[1761355448895,1e-08,193.81,193.8,73.83631868]
[1761355449071,1e-08,193.81,193.8,75.90206092]
[1761355450293,1e-08,193.81,193.8,81.06201964]
[1761355453466,0.1,193.84,193.83,33.75647521]
[1761355453467,1e-08,193.84,193.83,33.75647521]
[1761355453673,1e-08,193.84,193.83,71.52931501]
[1761355454283,1e-08,193.84,193.83,73.59473725]
[1761355455895,1e-08,193.84,193.83,78.75389733]
[1761355456597,1e-08,193.84,193.83,76.68847509]
[1761355456894,1e-08,193.84,193.83,77.35847509]
[1761355457489,1e-08,193.84,193.83,79.42389733]
[1761355466701,1e-08,193.84,193.83,80.3419308]
[1761355468877,1e-08,193.84,193.83,79.6719308]
[1761355469098,1e-08,193.84,193.83,80.3419308]
[1761355476003,0.72,193.88,193.87,33.75647521]
[1761355476189,0.72,193.9,193.88,10.87647521]
[1761355476523,0.72,193.9,193.89,49.05143248]
[1761355477508,0.72,193.9,193.89,54.20899604]
[1761355488408,0.72,193.9,193.89,56.27431164]
[1761355488720,0.72,193.9,193.89,53.71935437]
[1761355488920,0.72,193.9,193.89,51.65403877]
[1761355489507,0.72,193.9,193.89,54.20899604]
[1761355491428,0.76,193.91,193.89,54.20899604]
[1761355491614,0.76,193.91,193.9,7.71225484]
[1761355492025,0.1,193.91,193.9,18.58873005]
[1761355494925,0.1,193.91,193.9,19.29873005]
[1761355495134,0.1,193.91,193.9,19.8144598]
[1761355495311,0.1,193.91,193.9,27.52488873]
[1761355495517,0.1,193.91,193.9,28.02488873]
[1761355498753,0.1,193.91,193.9,30.579846]
[1761355500333,0.1,193.91,193.9,28.02488873]
[1761355500929,0.1,193.91,193.9,30.579846]
[1761355502227,0.1,193.91,193.9,28.02488873]
[1761355505839,0.1,193.91,193.9,24.75993146]
[1761355506032,0.1,193.91,193.9,27.31488873]
[1761355506244,0.1,193.91,193.9,28.03488873]
[1761355506744,0.1,193.98,193.94,33.75647521]
[1761355506940,0.1,193.98,193.97,13.43143248]
[1761355507117,0.1,193.98,193.97,49.03143248]
[1761355507317,0.82,193.98,193.97,49.03143248]
[1761355507518,0.82,193.98,193.97,60.66389405]
[1761355507925,0.82,193.98,193.97,65.81933045]
[1761355510751,0.1,193.98,193.97,65.81933045]
[1761355510952,0.82,193.98,193.97,65.81933045]
[1761355512044,0.1,193.98,193.97,65.81933045]
[1761355513249,0.1,193.98,193.97,66.53933045]
[1761355515351,0.1,193.98,193.97,65.81933045]
[1761355516750,0.82,193.98,193.97,30.21933045]
[1761355516942,0.82,193.98,193.97,65.81933045]
[1761355518638,0.1,193.98,193.97,65.81933045]
[1761355519036,0.82,193.98,193.97,63.26437318]
[1761355519236,0.82,193.98,193.97,65.81933045]
[1761355520335,0.1,193.98,193.97,65.81933045]
[1761355521361,0.8,193.98,193.97,65.81933045]
[1761355521668,0.8,193.98,193.97,19.34285524]
[1761355521840,0.8,193.98,193.97,40.7554364]
[1761355522668,0.8,193.98,193.97,43.31039367]
[1761355528564,0.8,193.98,193.97,7.71039367]
[1761355528763,0.8,193.98,193.97,6.7890208]
[1761355530670,0.8,193.98,193.97,18.42148237]
[1761355532874,0.8,193.98,193.97,16.78789797]
[1761355533050,0.8,193.98,193.97,18.42148237]
[1761355535552,0.8,193.98,193.97,6.7890208]
[1761355537465,0.1,193.98,193.97,6.7890208]
[1761355545884,0.1,193.98,193.97,17.66549601]
[1761355548784,0.1,193.98,193.97,18.38549601]
[1761355548985,0.1,193.98,193.97,30.01795758]
[1761355551891,0.1,193.98,193.97,30.01795758]
[1761355557375,11.63246157,194.02,193.98,11.59647521]
[1761355557585,0.1,194.04,194.03,10.87647521]
[1761355557775,0.1,194.04,194.03,71.48544382]
[1761355557975,0.1,194.04,194.03,72.18544382]
[1761355558181,0.1,194.1,194.04,10.87647521]
[1761355558371,0.1,194.1,194.08,1.6335844]
[1761355558572,0.1,194.1,194.09,35.58]
[1761355559084,0.1,194.1,194.07,37.2335844]
[1761355559390,0.69,194.09,194.08,6.78609882]
[1761355560194,0.69,194.09,194.08,5.15251442]
[1761355561792,0.69,194.09,194.07,35.58]
[1761355562699,0.69,194.09,194.07,37.2135844]
[1761355563075,0.69,194.09,194.08,1.6335844]
[1761355563382,0.1,194.1,194.08,1.6335844]
[1761355563594,0.1,194.1,194.09,6.78583335]
[1761355563772,0.1,194.1,194.09,43.08583335]
[1761355564373,0.1,194.1,194.09,42.38583335]
[1761355564592,0.79,194.1,194.09,42.38583335]
[1761355564995,0.79,194.1,194.09,40.75224895]
[1761355565175,0.1,194.1,194.09,42.38583335]
[1761355565580,0.1,194.1,194.09,56.11111785]
[1761355565891,0.1,194.1,194.09,32.71304952]
[1761355566090,0.1,194.1,194.09,69.94663392]
[1761355567198,0.1,194.1,194.09,71.58021832]
[1761355568589,0.1,194.1,194.09,35.98021832]
[1761355568786,0.1,194.1,194.09,71.58021832]
[1761355568983,0.1,194.1,194.09,69.94663392]
[1761355570302,0.1,194.1,194.09,34.34663392]
[1761355570483,0.1,194.1,194.09,71.58021832]
[1761355571199,0.1,194.1,194.09,69.94663392]
[1761355571897,0.1,194.1,194.09,69.96663392]
[1761355572886,0.1,194.1,194.09,34.34663392]
[1761355573101,0.1,194.1,194.09,69.96663392]
[1761355574087,0.1,194.1,194.09,53.96230856]
[1761355574602,0.1,194.1,194.09,59.11195163]
[1761355576418,0.1,194.1,194.09,57.47836723]
[1761355576590,0.1,194.1,194.09,59.11195163]
[1761355578132,0.69,194.22,194.17,10.87647521]
[1761355578285,0.69,194.21,194.2,1.6335844]
[1761355578486,0.69,194.21,194.2,37.3535844]
[1761355578716,0.69,194.21,194.2,35.72]
[1761355579300,5.14692566,194.3,194.2,37.3535844]
[1761355579514,0.69,194.24,194.2,35.72]
[1761355579803,5.14692566,194.3,194.23,1.6335844]
[1761355579993,5.14692566,194.3,194.23,37.3535844]
[1761355580183,5.14692566,194.3,194.21,0.68]
[1761355580184,1.6335844,194.28,194.2,1.6335844]
[1761355580383,22.88,194.27,194.2,1.6335844]
[1761355580620,22.88,194.27,194.2,37.3735844]
[1761355580794,22.38,194.27,194.2,37.3735844]
[1761355581622,0.69,194.26,194.2,37.3735844]
[1761355582182,5.8377799,194.26,194.2,42.52278715]
[1761355582412,0.69,194.25,194.2,42.52278715]
[1761355582612,0.69,194.25,194.2,40.88920275]
[1761355583120,0.69,194.25,194.2,42.52278715]
[1761355587309,0.69,194.25,194.21,1.6335844]
[1761355588925,0.69,194.25,194.21,6.78259494]
[1761355589152,0.69,194.25,194.21,7.46259494]
[1761355590729,0.69,194.25,194.21,7.69548277]
[1761355590939,0.69,194.25,194.21,8.37548277]
[1761355591313,0.69,194.25,194.21,5.82901054]
[1761355591821,0.69,194.25,194.21,5.14901054]
[1761355592232,0.69,194.25,194.21,5.82901054]
[1761355593443,0.69,194.25,194.21,8.37548277]
[1761355594151,0.69,194.25,194.21,7.69548277]
[1761355594453,0.69,194.25,194.21,5.14901054]
[1761355595140,0.69,194.25,194.21,8.37548277]
[1761355597342,0.69,194.25,194.21,5.14901054]
[1761355598043,8.38448121,194.25,194.15,16.02712695]
[1761355598233,2.54647223,194.24,194.18,35.68]
[1761355598438,0.69,194.24,194.18,38.22647223]
[1761355598629,0.69,194.23,194.18,38.22647223]
[1761355598831,0.69,194.23,194.18,43.3762993]
[1761355599845,0.69,194.23,194.18,7.6962993]
[1761355600029,0.69,194.23,194.18,43.3762993]
[1761355600824,0.69,194.23,194.19,2.54647223]
[1761355601125,0.69,194.23,194.19,7.695934]
[1761355602344,0.69,194.23,194.18,43.37630097]
[1761355602643,0.69,194.23,194.11,0.68]
[1761355602644,2.54647223,194.19,194.11,0.68]
[1761355602819,2.54647223,194.19,194.11,2.54647223]
[1761355602820,2.54647223,194.18,194.11,2.54647223]
[1761355603020,5.83990455,194.18,194.09,5.83223272]
[1761355603237,2.54647223,194.16,194.09,8.37870495]
[1761355603642,0.69,194.15,194.09,8.37870495]
[1761355605140,0.69,194.15,194.09,5.83223272]
[1761355605341,0.69,194.15,194.09,8.37870495]
[1761355605547,3.23647223,194.15,194.09,5.83223272]
[1761355605725,3.23647223,194.15,194.09,8.37870495]
[1761355606134,2.54647223,194.17,194.1,3.22647223]
[1761355606537,2.54647223,194.17,194.11,0.68]
[1761355606840,8.38649304,194.18,194.11,3.22647223]
[1761355607248,3.23647223,194.17,194.11,5.83156742]
[1761355607456,2.54647223,194.15,194.09,5.83217719]
[1761355607739,0.69,194.14,194.09,5.83217719]
[1761355608558,0.69,194.14,194.09,8.37864942]
[1761355608841,5.84101391,194.14,194.08,23.44]
[1761355609050,8.38748614,194.14,194.07,3.22647223]
[1761355609228,0.69,194.13,194.07,3.22647223]
[1761355609753,0.69,194.13,194.08,2.54647223]
[1761355610326,0.69,194.13,194.08,8.41879461]
[1761355611452,0.69,194.13,194.08,5.15232238]
[1761355611826,0.69,194.13,194.08,5.87232238]
[1761355612149,0.69,194.13,194.08,0.72]
[1761355612946,0.69,194.13,194.08,3.26647223]
[1761355613535,0.69,194.13,194.09,5.15224895]
[1761355615534,0.69,194.13,194.07,5.87252683]
[1761355615829,0.69,194.13,194.08,2.54647223]
[1761355616357,0.69,194.13,194.08,3.26647223]
[1761355616750,0.69,194.13,194.09,5.15224895]
[1761355617954,0.69,194.13,194.09,0.72]
[1761355618350,0.68,194.15,194.1,0.66]
[1761355618542,0.68,194.15,194.1,3.20647223]
[1761355618949,0.68,194.15,194.1,0.66]
[1761355619163,5.83078809,194.15,194.1,0.66]
[1761355619353,8.37726032,194.15,194.1,0.66]
[1761355619545,0.68,194.14,194.1,0.66]
[1761355619855,0.68,194.14,194.09,8.35857391]
[1761355622257,0.68,194.14,194.09,7.85857391]
[1761355622442,0.68,194.14,194.09,5.31210168]
[1761355623039,3.22647223,194.14,194.09,5.31210168]
[1761355623440,8.37745698,194.14,194.08,5.15247943]
[1761355623641,3.22647223,194.13,194.07,0.66]
[1761355624146,0.68,194.12,194.07,0.66]
[1761355624344,0.68,194.12,194.07,5.81274377]
[1761355624547,0.68,194.12,194.07,8.359216]
[1761355624762,0.68,194.12,194.08,0.66]
[1761355625361,0.68,194.12,194.08,5.81237705]
[1761355625758,2.54647223,194.13,194.08,5.15237705]
[1761355625959,3.22647223,194.13,194.09,0.66]
[1761355626963,22.88,194.16,194.09,8.35863753]
[1761355627153,0.68,194.18,194.12,2.54647223]
[1761355627341,2.54647223,194.21,194.14,2.54647223]
[1761355627543,3.22647223,194.19,194.12,3.20647223]
[1761355627744,2.54647223,194.18,194.12,3.20647223]
[1761355628070,3.22647223,194.18,194.12,3.20647223]
[1761355628244,3.22647223,194.17,194.12,0.66]
[1761355628569,3.22647223,194.17,194.13,5.15118734]
[1761355628744,0.68,194.17,194.13,5.81118734]
[1761355629851,25.42647223,194.18,194.13,5.15118734]
[1761355630168,23.56,194.18,194.14,0.66]
[1761355630957,0.68,194.17,194.13,5.81118734]
[1761355632760,3.22647223,194.17,194.13,5.81118734]
[1761355633463,0.68,194.17,194.13,5.81118734]
[1761355635463,31.25638163,194.18,194.13,5.15118734]
[1761355635766,31.25638163,194.18,194.14,0.66]
[1761355635968,31.25638163,194.18,194.13,5.81118734]
[1761355636160,31.25638163,194.18,194.13,5.15118734]
[1761355636357,26.10647223,194.18,194.14,0.66]
[1761355636761,22.88,194.18,194.13,5.15118734]
[1761355637067,0.68,194.17,194.13,5.81118734]
[1761355643383,0.68,194.17,194.12,5.1514527]
[1761355643585,0.68,194.17,194.12,5.8114527]
[1761355643764,0.68,194.17,194.12,5.1514527]
[1761355643963,3.22647223,194.17,194.13,0.66]
[1761355644784,0.68,194.17,194.13,5.81116574]
[1761355645083,30.57633747,194.18,194.12,5.1514498]
[1761355645084,3.24647223,194.16,194.12,5.1514498]
[1761355645454,3.24647223,194.16,194.12,5.8114498]
[1761355646772,3.24647223,194.16,194.13,0.66]
[1761355646971,0.7,194.16,194.13,0.66]
[1761355647171,2.54647223,194.14,194.09,5.15224895]
[1761355647375,2.54647223,194.12,194.07,0.66]
[1761355647582,2.54647223,194.11,194.08,0.66]
[1761355648070,5.85130521,194.13,194.08,0.66]
[1761355648273,2.54647223,194.12,194.08,0.66]
[1761355648471,3.24647223,194.12,194.08,0.66]
[1761355649188,3.24647223,194.12,194.08,5.81251359]
[1761355649765,3.24647223,194.12,194.07,5.15277523]
[1761355649972,3.24647223,194.12,194.07,5.81277523]
[1761355650286,2.54647223,194.12,194.07,5.15277523]
[1761355650591,0.7,194.11,194.07,5.15277523]
[1761355650780,0.7,194.11,194.07,5.81277523]
[1761355651685,3.24647223,194.12,194.07,5.81277523]
[1761355651987,0.7,194.12,194.07,5.15277523]
[1761355652188,3.24647223,194.12,194.07,5.81277523]
[1761355652888,2.33219556,194.12,194.08,0.66]
[1761355655292,0.7,194.12,194.08,0.66]
[1761355655589,2.33219556,194.12,194.08,0.66]
[1761355656191,0.7,194.11,194.07,5.15277523]
[1761355656784,2.33219556,194.11,194.07,5.81277523]
[1761355657297,7.48393123,194.11,194.07,0.66]
[1761355657495,7.48393123,194.11,194.06,5.15304544]
[1761355657496,0.7,194.1,194.06,5.81304544]
[1761355659300,2.33219556,194.1,194.06,5.81304544]
[1761355660588,0.7,194.13,194.07,0.66]
[1761355660789,1.63219556,194.13,194.07,2.29219556]
[1761355661181,2.33219556,194.13,194.08,0.66]
[1761355661789,1.63219556,194.12,194.08,0.66]
[1761355661982,2.33219556,194.12,194.08,0.66]
[1761355662187,2.33219556,194.11,194.06,5.81299426]
[1761355662593,1.63219556,194.1,194.06,5.81299426]
[1761355662791,1.63219556,194.1,194.07,0.66]
[1761355663697,1.63219556,194.1,194.05,5.81331028]
[1761355663698,2.33219556,194.1,194.05,5.81331028]
[1761355663997,1.63219556,194.09,194.05,5.81331028]
[1761355664212,2.33219556,194.09,194.05,5.81331028]
[1761355664793,1.63219556,194.09,194.05,5.15331028]
[1761355665099,1.63219556,194.09,194.06,0.66]
[1761355665299,2.33219556,194.1,194.06,0.66]
[1761355665696,2.33219556,194.1,194.06,5.81304308]
[1761355666197,1.63219556,194.1,194.06,5.15304308]
[1761355666389,1.63219556,194.1,194.07,0.66]
[1761355666700,5.15181282,194.11,194.07,0.66]
[1761355667202,6.78400838,194.11,194.07,0.66]
[1761355667998,7.48400838,194.11,194.07,0.66]
[1761355668202,1.63219556,194.1,194.07,0.66]
[1761355668502,1.63219556,194.1,194.06,5.15304308]
[1761355668684,1.63219556,194.1,194.06,5.81304308]
[1761355668685,2.33219556,194.1,194.06,5.81304308]
[1761355669683,2.33219556,194.1,194.06,5.86304308]
[1761355670086,2.33219556,194.1,194.06,5.15304308]
[1761355670284,1.63219556,194.1,194.07,0.71]
[1761355670914,22.88,194.15,194.09,1.63219556]
[1761355671121,0.72,194.2,194.14,1.63219556]
[1761355671591,1.63219556,194.19,194.14,0.71]
[1761355671791,1.63219556,194.18,194.11,22.88]
[1761355671997,2.35219556,194.19,194.13,2.34219556]
[1761355672201,6.78152971,194.2,194.14,1.63219556]
[1761355672403,6.78152971,194.2,194.14,2.34219556]
[1761355672604,6.78152971,194.2,194.15,0.71]
[1761355672805,7.50152971,194.2,194.15,0.71]
[1761355674686,43.28152971,194.2,194.15,0.71]
[1761355675315,43.28152971,194.2,194.13,0.71]
[1761355675316,2.35219556,194.19,194.13,0.71]
[1761355675488,1.63219556,194.17,194.13,0.71]
[1761355675815,0.72,194.19,194.13,0.71]
[1761355676006,1.63219556,194.18,194.13,0.71]
[1761355677811,1.63219556,194.18,194.13,5.86098842]
[1761355678008,7.50184056,194.19,194.14,0.67]
[1761355678208,2.35219556,194.19,194.14,0.67]
[1761355678509,2.35219556,194.19,194.14,2.30219556]
[1761355678686,2.35219556,194.19,194.15,0.67]
[1761355679395,266.9,194.29,194.18,1.63219556]
[1761355679587,1.63219556,194.25,194.19,2.30219556]
[1761355679926,1.63219556,194.25,194.2,5.14933058]
[1761355680101,0.67,194.26,194.2,5.81933058]
[1761355680308,1.63219556,194.24,194.2,5.81933058]
[1761355680609,1.63219556,194.24,194.21,0.67]
[1761355680926,1.63219556,194.25,194.21,0.67]
[1761355682197,1.63219556,194.25,194.21,5.81899723]
[1761355682709,1.63219556,194.25,194.22,0.67]
[1761355683413,1.63219556,194.25,194.21,5.14899723]
[1761355683607,2.30219556,194.25,194.21,0.67]
[1761355683794,0.67,194.25,194.21,0.67]
[1761355684000,1.63219556,194.24,194.21,0.67]
[1761355684514,5.14801797,194.25,194.19,0.67]
[1761355684819,1.63219556,194.22,194.19,0.67]
[1761355686006,1.63219556,194.22,194.19,5.81952272]
[1761355686318,137.98,194.27,194.19,5.81952272]
[1761355686518,1.63219556,194.24,194.2,0.67]
[1761355687722,1.63219556,194.24,194.2,5.8192603]
[1761355687899,40.90782885,194.26,194.2,5.8192603]
[1761355688100,40.90782885,194.26,194.21,0.67]
[1761355688524,41.57782885,194.26,194.21,0.67]
[1761355689321,1.63219556,194.25,194.21,0.67]
[1761355689497,41.57782885,194.26,194.21,0.67]
[1761355691114,102.2,194.27,194.21,5.81900072]
[1761355691316,102.2,194.27,194.22,1.63219556]
[1761355691521,102.2,194.27,194.22,2.30219556]
[1761355691717,102.2,194.27,194.23,0.67]
[1761355692117,102.2,194.27,194.23,5.81836732]
[1761355692519,102.2,194.27,194.24,0.67]
[1761355692822,1.63219556,194.28,194.24,0.67]
[1761355694508,0.1,194.3,194.24,7.45038737]
[1761355694707,1.73219556,194.3,194.24,7.45038737]
[1761355694910,1.73219556,194.3,194.25,0.67]
[1761355695138,0.1,194.3,194.26,5.14774014]
[1761355695320,0.1,194.3,194.26,5.81774014]
[1761355695504,0.1,194.3,194.27,0.67]
[1761355696641,0.1,194.3,194.29,1.63219556]
[1761355697004,0.1,194.3,194.29,0.67]
[1761355697210,0.1,194.3,194.29,7.44914084]
[1761355700340,0.1,194.3,194.29,5.81694528]
[1761355700530,0.1,194.3,194.29,7.44914084]
[1761355701254,188.24,194.39,194.29,7.44914084]
[1761355701255,11.63246157,194.6,194.33,15.47]
[1761355701413,0.66,194.59,194.43,22.88]
[1761355701608,11.63246157,194.6,194.44,0.51429746]
[1761355701609,0.66,194.57,194.44,0.51429746]
[1761355701910,0.66,194.57,194.35,0.69]
[1761355701911,1.99999999,194.39,194.23,0.51485352]
[1761355702106,22.88,194.35,194.21,0.22]
[1761355702311,22.88,194.31,194.22,0.69]
[1761355702619,22.88,194.27,194.16,0.69]
[1761355702818,0.51429746,194.26,194.12,0.69]
[1761355703124,1.63219556,194.16,194.12,0.69]
[1761355703323,24.56,194.15,194.12,0.69]
[1761355703915,37.52,194.14,194.12,0.69]
[1761355705425,37.52,194.14,194.1,0.69]
[1761355705627,2.14649302,194.17,194.1,0.69]
[1761355705837,31.62,194.16,194.1,0.69]
[1761355706628,31.62,194.16,194.1,2.32219556]
[1761355707037,31.62,194.16,194.11,0.69]
[1761355707338,31.62,194.16,194.13,1.63219556]
[1761355707832,6.32397071,194.19,194.13,1.63219556]
[1761355707833,37.48,194.15,194.13,1.63219556]
[1761355708227,37.48,194.15,194.11,0.69]
[1761355708433,37.48,194.15,194.12,1.63219556]
[1761355708636,37.48,194.15,194.1,1.63219556]
[1761355708637,1.17429746,194.14,194.1,1.63219556]
[1761355709139,1.17429746,194.14,194.08,2.32219556]
[1761355709931,0.51429746,194.14,194.08,2.32219556]
[1761355710440,0.51429746,194.14,194.08,0.69]
[1761355712544,0.51429746,194.14,194.09,1.63219556]
[1761355712717,0.51429746,194.14,194.09,0.69]
[1761355712922,6.32527103,194.14,194.07,0.69]
[1761355713117,6.32527103,194.14,194.07,3.23949273]
[1761355713543,37.4,194.13,194.09,2.54949273]
[1761355713921,37.4,194.13,194.1,0.69]
[1761355714122,37.4,194.12,194.11,2.54949273]
[1761355714945,1.17429746,194.15,194.11,2.54949273]
[1761355715133,37.38,194.14,194.09,2.54949273]
[1761355715335,0.51429746,194.13,194.09,2.54949273]
[1761355715538,38.55429746,194.14,194.09,3.23949273]
[1761355715742,37.89429746,194.14,194.09,3.23949273]
[1761355716157,38.55429746,194.14,194.08,7.70194495]
[1761355716358,38.55429746,194.14,194.09,0.69]
[1761355718732,0.51429746,194.14,194.1,2.54949273]
[1761355719054,37.34,194.13,194.1,2.54949273]
[1761355719854,36.84,194.13,194.1,2.54949273]
[1761355720438,36.84,194.13,194.08,8.39198728]
[1761355720960,36.84,194.13,194.09,0.69]
[1761355721834,1.17429746,194.15,194.09,5.8422016]
[1761355722038,37.28,194.14,194.1,2.54949273]
[1761355722356,0.51429746,194.16,194.1,3.23949273]
[1761355722546,0.51429746,194.16,194.12,2.54949273]
[1761355722547,37.28,194.15,194.12,2.54949273]
[1761355723048,37.28,194.15,194.12,3.23949273]
[1761355723649,37.28,194.15,194.14,2.54949273]
[1761355725561,37.28,194.15,194.12,5.8413845]
[1761355725758,37.24,194.14,194.13,2.54949273]
[1761355725967,37.24,194.14,194.13,3.23949273]
[1761355726468,1.17429746,194.18,194.13,3.23949273]
[1761355726673,37.22,194.14,194.13,2.54949273]
[1761355727739,37.22,194.14,194.05,12.88279954]
[1761355727740,37.88,194.14,194.05,12.88279954]
[1761355728042,37.88,194.14,194.05,2.54949273]
[1761355728043,2.54949273,194.12,194.05,2.54949273]
[1761355728258,0.51429746,194.11,194.06,2.54949273]
[1761355728458,37.22,194.1,194.04,23.57]
[1761355728640,0.51429746,194.09,194.05,2.54949273]
[1761355729144,0.51429746,194.09,194.05,3.23949273]
[1761355729947,1.22429746,194.09,194.04,7.70306895]
[1761355730153,1.22429746,194.09,194.04,8.37306895]
[1761355730864,1.22429746,194.09,194.04,0.67]
[1761355731052,37.18,194.08,194.04,0.67]
[1761355731253,0.51429746,194.07,194.02,3.21949273]
[1761355731551,0.51429746,194.07,194.02,8.37358083]
[1761355731754,0.51429746,194.07,194.03,0.67]
[1761355732046,1.22429746,194.07,194.02,5.8240881]
[1761355732245,1.22429746,194.07,194.01,0.2]
[1761355732246,2.54949273,194.04,194.01,0.2]
[1761355732463,1.22429746,194.07,194.01,0.2]
[1761355732464,2.54949273,194.02,194.01,0.2]